Cogmind - Beta 16 @@@ ROGUE MODE // 2025.12.31 @ 23:57:14 Player: Duduxx Result: Self-destructed Performance ------------- Evolutions (5) 2500 Regions Visited (9) 1800 Robots Destroyed (76) 380 Value Destroyed (2418) 2418 Prototype IDs (29) 580 Alien Tech Used (0) 0 Bonus (300) 300 TOTAL SCORE: 7978 Bonus ------- Aligned with FarCom 300 Cogmind --------- Core Integrity 678/1000 Matter 300/300 Energy 150/150 System Corruption 7% Temperature Cool (0) Movement Flying (40) Location -5/Factory Parts ------- > --- POWER (2) -------- Micro Fission Core > --- PROPULSION (5) --- Nuclear Pulse Thruster > --- UTILITY (8) ------ Improved Heat Sink Advanced Melee Analysis Suite Hacking Suite Improved System Shield > --- WEAPON (2) ------- (None) > --- INVENTORY (5) ---- Micro Fission Core Coolant Injector Remote Force Field Proton Missile Launcher Peak State ------------ > --- POWER ------------ Micro Nuclear Core Micro Fission Core > --- PROPULSION ------- VTOL Module Xenon Bombardment Thruster Nuclear Pulse Thruster Nuclear Pulse Thruster Cooled Cesium-ion Thruster > --- UTILITY ---------- Improved Cooling System Gravity Neutralizer Advanced Melee Analysis Suite Target Analyzer Microactuators Hacking Suite > --- WEAPON ----------- Katana Longsword +1 > --- INVENTORY -------- Light Angular Momentum Engine Micro Fission Core Coolant Injector Improved Propulsion Shielding Proton Missile Launcher [Rating: 70] Favorites ----------- Power Light Ion Engine Engine Light Ion Engine Power Core Micro Nuclear Core Propulsion Xenon Bombardment Thruster Treads Light Treads Wheel Wheel Flight Unit Xenon Bombardment Thruster Utility Hacking Suite Device Microactuators Storage High-capacity Storage Unit Processor Target Analyzer Hackware Hacking Suite Protection Improved Light Armor Plating Weapon Light Assault Rifle Ballistic Gun Light Assault Rifle Launcher Grenade Launcher Slashing Weapon Katana Build | -11 -10 -10 -10 -9 -8 -7 -7 -6 -5 ------- Run | Yrd Mat Min Exi Min Mat Fac Sto Fac Fac Slots Evolved 10 | . . . . . 4 2 . 2 2 Power 1 | . . . . . 1 . . . . Propulsion 3 | . . . . . 2 1 . . . Utility 6 | . . . . . 1 1 . 2 2 Weapon . | . . . . . . . . . . Parts Attached 71 | 8 3 . . 2 11 19 5 12 11 Power 12 | 1 . . . . 1 3 2 3 2 Engine 5 | 1 . . . . 1 . 2 . 1 Core 7 | . . . . . . 3 . 3 1 Reactor . | . . . . . . . . . . Propulsion 24 | 2 . . . 2 4 5 1 5 5 Treads 2 | 2 . . . . . . . . . Leg . | . . . . . . . . . . Wheel 5 | . . . . 2 3 . . . . Hover . | . . . . . . . . . . Flight 17 | . . . . . 1 5 1 5 5 Utility 28 | 3 2 . . . 5 9 1 4 4 Device 14 | 2 . . . . 4 5 . 2 1 Storage 3 | 1 2 . . . . . . . . Processor 5 | . . . . . . 3 1 1 . Hackware 4 | . . . . . 1 . . 1 2 Protection 2 | . . . . . . 1 . . 1 Artifact . | . . . . . . . . . . Weapon 7 | 2 1 . . . 1 2 1 . . Energy Gun . | . . . . . . . . . . Energy Cannon . | . . . . . . . . . . Ballistic Gun 3 | 2 . . . . 1 . . . . Ballistic Cannon . | . . . . . . . . . . Launcher 2 | . 1 . . . . . 1 . . Special Weapon . | . . . . . . . . . . Impact Weapon . | . . . . . . . . . . Slashing Weapon 2 | . . . . . . 2 . . . Piercing Weapon . | . . . . . . . . . . Special Melee Weapon . | . . . . . . . . . . Unidentified Prototypes 6 | . . . . . 1 1 1 2 1 Parts Lost 37 | . . . . 2 6 3 5 7 14 Power 7 | . . . . . 1 . 1 2 3 Propulsion 18 | . . . . 1 2 2 3 4 6 Utility 9 | . . . . 1 2 1 1 . 4 Weapon 3 | . . . . . 1 . . 1 1 Highest Loss Streak 11 | . . . . 2 2 2 3 3 11 To Critical Strikes . | . . . . . . . . . . Average Backups 7 | 2 5 8 8 9 14 7 5 4 4 Power 1 | . 1 1 1 1 2 2 2 1 1 Propulsion . | 1 2 2 2 1 1 . . . . Utility 1 | . . 1 1 1 4 2 2 2 1 Weapon 2 | . 2 4 4 5 5 2 1 1 1 Tool/Special . | . . . . . . . . . . Unused Backups 21 | . 1 . . 1 4 10 . 1 4 Power 8 | . . . . . 2 3 . 1 2 Propulsion 2 | . . . . 1 1 . . . . Utility 4 | . . . . . . 3 . . 1 Weapon 7 | . 1 . . . 1 4 . . 1 Tool/Special . | . . . . . . . . . . Average Slot Usage (%) 89 | . 100 100 100 93 75 88 98 89 77 Engine 9 | . 14 14 14 14 9 7 10 4 2 Core 2 | . . . . . . 3 3 7 6 Treads 8 | . 28 28 28 16 . . . . . Wheel 7 | . . . . 11 25 8 . . . Flight 12 | . . . . . . 23 36 24 21 Device 13 | . 14 14 14 7 7 12 14 21 19 Storage 6 | . 14 14 14 14 9 1 . . . Processor 4 | . . . . . . 4 14 13 9 Hackware 3 | . . . . . 6 7 . 4 9 Ballistic Gun 12 | . 27 28 28 28 17 2 . . . Slashing Weapon 5 | . . . . . . 12 15 13 4 Peak Build Rating 70 | 9 10 10 10 10 23 52 54 70 68 Average Rating 30 | 5 9 10 9 8 16 41 51 59 58 On Entrance 21 | . 9 10 10 10 8 23 51 42 56 Avg Prop Armor Cover (%) 7 | . . . . . . 7 . . . Naked Turns . | . . . . . . . . . . Heaviest Build 57 | 12 47 47 47 47 57 57 29 26 23 Greatest Support 42 | 40 40 40 40 40 38 41 31 42 39 Greatest Overweight (x) 2 | 1 1 1 1 1 2 1 1 1 . Average Overweight (x) . | . . 1 1 1 1 . . . . Largest Inventory Capacity 20 | 8 20 20 20 20 20 20 5 5 5 Average Capacity 12 | 7 14 20 20 20 20 7 5 5 5 Most Carried 19 | 5 8 8 9 10 18 19 5 5 5 Average Carried 7 | 2 5 8 8 9 14 7 4 4 4 Final Capacity 20 | 8 20 20 20 20 20 5 5 5 5 Final Carried 18 | 4 8 8 9 10 18 5 5 5 4 Class Distribution -------------------- 60% | Mutant 20% | Sprinter 8% | Scavenger-Sprinter 6% | Skirmisher Dominant Class ---------------- Mutant | -10/Materials Mutant | -10/Mines Mutant | -10/Exiles Skirmisher | -9/Mines Mutant | -8/Materials Mutant | -7/Factory Scavenger-Sprinter | -7/Storage Sprinter | -6/Factory Sprinter | -5/Factory Resources | -11 -10 -10 -10 -9 -8 -7 -7 -6 -5 ----------- Run | Yrd Mat Min Exi Min Mat Fac Sto Fac Fac Matter Collected 1426 | 312 162 . . 75 299 222 146 115 95 Remotely 67 | 67 . . . . . . . . . Salvage Created 2896 | 124 259 . . 2 657 583 801 318 152 Parts 185 | 9 18 . . . 42 42 44 19 11 Haulers Intercepted 3 | . . . . . 1 . 2 . . Recyclers Shooed . | . . . . . . . . . . Parts Field Recycled . | . . . . . . . . . . Retrieved Matter . | . . . . . . . . . . Parts Self-Destructed . | . . . . . . . . . . Prevented . | . . . . . . . . . . Parts Restored . | . . . . . . . . . . Kills | -11 -10 -10 -10 -9 -8 -7 -7 -6 -5 ------- Run | Yrd Mat Min Exi Min Mat Fac Sto Fac Fac Combat Hostiles Destroyed 58 | . 8 . . 1 14 12 12 7 4 Melee 35 | . . . . . . 12 12 7 4 Guns 17 | . 5 . . 1 11 . . . . AOE 6 | . 3 . . . 3 . . . . Classes Destroyed 12 | 3 3 . . 1 2 2 1 . . Worker 3 | 2 . . . . 1 . . . . Builder 2 | . . . . . . . 2 . . Tunneler 2 | 1 1 . . . . . . . . Hauler 3 | . . . . . 1 . 2 . . Recycler 2 | 1 . . . . 1 . . . . Watcher 7 | . 1 . . . 1 2 . 2 1 Swarmer 24 | . 4 . . . 6 4 3 4 3 Grunt 13 | . 4 . . . 5 1 3 . . Sentry 10 | . . . . . 3 1 6 . . Hunter 1 | . . . . . . 1 . . . Programmer 9 | . . . . . . 5 . 3 1 Assembled 1 | . . . . 1 . . . . . Best Kill Streak 7 | 4 3 . . 1 4 4 5 7 2 Combat Bots Only 7 | . 3 . . 1 3 4 5 7 2 Max Kills in Single Turn 2 | 1 2 . . 1 2 1 1 1 1 Gunslinging . | . . . . . . . . . . Exploded 2 | . 2 . . . 2 . . . . Melee 1 | . . . . . . 1 1 1 1 Uniques/NPCs Destroyed . | . . . . . . . . . . Combat | -11 -10 -10 -10 -9 -8 -7 -7 -6 -5 -------- Run | Yrd Mat Min Exi Min Mat Fac Sto Fac Fac Hostile Shots Fired 459 | . 44 . . 5 80 75 105 73 77 Missed 174 | . 14 . . 2 24 29 44 30 31 Hits 285 | . 30 . . 3 56 46 61 43 46 Melee 3 | . . . . 3 . . . . . Projectile 282 | . 30 . . . 56 46 61 43 46 Critical Strikes 7 | . 1 . . . 3 . . . 3 Damage Taken 3375 | . 298 . . 87 686 395 469 575 865 Core 908 | . 24 . . 36 178 87 82 179 322 Absorbed by Shields 243 | . . . . . 92 111 40 . . Redirected to Shielding 11 | . . . . . . . . . 11 Core Remaining (%) 79 | 100 . . . 76 67 . 75 78 . Volleys Fired 83 | 13 21 . . 8 41 . . . . Largest 2 | 2 2 . . 2 2 . . . . Hottest 50 | 40 50 . . 40 50 . . . . Shots Fired 168 | 26 42 . 1 17 82 . . . . Gun 164 | 26 40 . 1 17 80 . . . . Cannon . | . . . . . . . . . . Launcher 4 | . 2 . . . 2 . . . . Special . | . . . . . . . . . . Kinetic 164 | 26 40 . 1 17 80 . . . . Thermal . | . . . . . . . . . . Explosive 4 | . 2 . . . 2 . . . . Electromagnetic . | . . . . . . . . . . Robot Hit Streak 15 | 5 8 . . 8 15 . . . . Robot Miss Streak 7 | 4 3 . . 2 7 . . . . Penetration Max . | . . . . . . . . . . Secondary Targets 3 | . 1 . . . 2 . . . . Max Gunslinging Chain 1 | . 1 . . . 1 . . . . Shots Hit Robots 230 | 16 26 . . 12 59 34 39 24 20 Core Hits 110 | 5 15 . . 4 39 15 18 9 5 Critical Kills . | . . . . . . . . . . Critical Parts Destroyed 3 | . 1 . . 1 1 . . . . Critical Strikes 15 | . 1 . . 1 1 1 6 3 2 Destroy 3 | . 1 . . 1 1 . . . . Sever 12 | . . . . . . 1 6 3 2 Melee Attacks 211 | . . . . . . 68 65 43 35 Impact . | . . . . . . . . . . Slashing 211 | . . . . . . 68 65 43 35 Piercing . | . . . . . . . . . . Sneak Attacks 13 | . . . . . . 3 7 2 1 Combat Hostiles 5 | . . . . . . 1 3 1 . Follow-up Attacks 6 | . . . . . . 1 3 2 . Damage Inflicted 7559 | 171 496 . . 119 869 1667 2257 1227 753 Guns 1293 | 171 292 . . 119 711 . . . . Cannons . | . . . . . . . . . . Explosions 349 | . 191 . . . 158 . . . . Melee 5904 | . . . . . . 1667 2257 1227 753 Ramming 13 | . 13 . . . . . . . . Kinetic 1293 | 171 292 . . 119 711 . . . . Thermal . | . . . . . . . . . . Explosive 349 | . 191 . . . 158 . . . . Electromagnetic . | . . . . . . . . . . Impact . | . . . . . . . . . . Slashing 5904 | . . . . . . 1667 2257 1227 753 Piercing . | . . . . . . . . . . Highest Corruption 8 | . 1 1 1 8 . 4 4 1 7 Average Corruption 2 | . 1 1 1 4 . 3 4 1 2 Corruption Purged . | . . . . . . . . . . Corruption Blocked . | . . . . . . . . . . Effects 50 | . . . 4 10 . 20 11 1 4 Message Errors 18 | . . . 2 4 . 7 3 1 1 Matter Fused 11 | . . . . 2 . 5 4 . . Heat Flow Errors 9 | . . . 1 . . 5 2 . 1 Energy Discharges 2 | . . . . . . 1 1 . . Parts Rejected 1 | . . . . 1 . . . . . Parts Fused 2 | . . . . 1 . 1 . . . Data Loss (minor) 3 | . . . . . . . 1 . 2 Data Loss (major) 2 | . . . . 1 . 1 . . . Misfires 2 | . . . 1 1 . . . . . Overload Shots . | . . . . . . . . . . Overflow Damage 558 | . 6 . . . . 270 102 100 80 Projectiles . | . . . . . . . . . . Explosions 6 | . 6 . . . . . . . . Melee 552 | . . . . . . 270 102 100 80 Knockbacks . | . . . . . . . . . . Impact . | . . . . . . . . . . Kinetic . | . . . . . . . . . . Secondary . | . . . . . . . . . . Self-Inflicted Damage 38 | . . . . . 38 . . . . Shots 1 | . . . . . 1 . . . . Rammed 1 | . 1 . . . . . . . . Targets Rammed 1 | . 1 . . . . . . . . Kicked . | . . . . . . . . . . Crushed . | . . . . . . . . . . Highest Temperature 316 | . 24 . 118 . 24 316 105 . 211 Average Temperature 112 | . 8 . 60 . 5 129 51 . 122 Received Heat Transfer 726 | . 129 . . . 297 34 128 102 36 Siege Activations . | . . . . . . . . . . Martial Activations . | . . . . . . . . . . Shielding Activations . | . . . . . . . . . . Robots Disrupted . | . . . . . . . . . . Combat Hostiles . | . . . . . . . . . . Robots Corrupted . | . . . . . . . . . . Combat Hostiles . | . . . . . . . . . . Parts Fried . | . . . . . . . . . . Impact Corruptions . | . . . . . . . . . . Robots Melted . | . . . . . . . . . . Combat Hostiles . | . . . . . . . . . . Parts Melted . | . . . . . . . . . . Heat Transferred . | . . . . . . . . . . Parts Sabotaged . | . . . . . . . . . . Parts Stolen . | . . . . . . . . . . Parts Stripped . | . . . . . . . . . . Power Chain Reactions . | . . . . . . . . . . Alert | -11 -10 -10 -10 -9 -8 -7 -7 -6 -5 ------- Run | Yrd Mat Min Exi Min Mat Fac Sto Fac Fac Maximum Alert Level 1 | . . . . . . 1 1 1 1 Low Security (%) 91 | 100 100 100 . 100 100 98 60 71 91 Level 1 8 | . . . . . . 1 39 28 8 Level 2 . | . . . . . . . . . . Level 3 . | . . . . . . . . . . Level 4 . | . . . . . . . . . . Level 5 . | . . . . . . . . . . High Security . | . . . . . . . . . . Max Security . | . . . . . . . . . . Peak Influence 365 | 10 117 . . . 137 204 365 340 237 Initial 156 | . . . . . . 46 86 156 134 Average 78 | 1 39 . . . 71 57 203 156 104 Influence Increases 2625 | 20 214 . . . 434 571 579 475 332 Destroy 0b10 Robot/C 1140 | . 160 . . . 280 240 240 140 80 Destroy 0b10 Robot/NC 95 | 20 10 . . . 20 10 20 10 5 Destroy Leader 340 | . 42 . . . 74 74 84 44 22 Successful Hack 111 | . . . . . 7 68 29 4 3 Disable Machine 15 | . . . . . . . 15 . . Destroy Structure 69 | . 2 . . . 23 14 11 7 12 Partial Spotted 150 | . . . . . . 45 60 30 15 Lose Combat Pursuer 705 | . . . . . 30 120 120 240 195 Influence Decreases 2625 | 20 214 . . . 332 483 424 545 607 Entered New Map 490 | . . . . . . 56 104 189 141 Time Decay 1629 | 20 214 . . . 282 407 230 286 190 Lost Part 316 | . . . . . 50 20 50 70 126 Lost Ally 40 | . . . . . . . 40 . . Purge Threat 150 | . . . . . . . . . 150 Squads Dispatched 21 | . 1 . . 1 3 7 2 5 2 Investigation 9 | . 1 . . . 3 3 . 1 1 Extermination 8 | . . . . . . 4 . 3 1 Reinforcement 1 | . . . . . . . . 1 . Assault 3 | . . . . 1 . . 2 . . Garrison . | . . . . . . . . . . Intercept . | . . . . . . . . . . Searches Triggered . | . . . . . . . . . . Construction Impeded . | . . . . . . . . . . Haulers Reinforced . | . . . . . . . . . . Active Scanning Responses . | . . . . . . . . . . Cargo Convoy Interrupts . | . . . . . . . . . . Stealth | -11 -10 -10 -10 -9 -8 -7 -7 -6 -5 --------- Run | Yrd Mat Min Exi Min Mat Fac Sto Fac Fac Distress Signals 8 | . 1 . . . 2 2 1 2 . Communications Jammed . | . . . . . . . . . . Distress Signals . | . . . . . . . . . . Times Spotted 119 | . 11 . . 6 22 20 14 22 24 Peak Tracking Total 12 | . 3 . . 3 4 5 7 12 8 Tactical Retreats 17 | . . . . . 1 3 3 4 6 Traps | -11 -10 -10 -10 -9 -8 -7 -7 -6 -5 ------- Run | Yrd Mat Min Exi Min Mat Fac Sto Fac Fac Traps Triggered 12 | . 2 . . . . 3 2 4 1 Indirectly . | . . . . . . . . . . Trap Hack Attempts . | . . . . . . . . . . Triggered . | . . . . . . . . . . Disarmed . | . . . . . . . . . . Reprogrammed . | . . . . . . . . . . Reused . | . . . . . . . . . . Traps Extracted . | . . . . . . . . . . Installed . | . . . . . . . . . . Triggered . | . . . . . . . . . . Machines | -11 -10 -10 -10 -9 -8 -7 -7 -6 -5 ---------- Run | Yrd Mat Min Exi Min Mat Fac Sto Fac Fac Machines Disabled 1 | . . . . . . . 1 . . Max in Single Turn 1 | . . . . . . . 1 . . Machines Repaired . | . . . . . . . . . . Machines Dismantled . | . . . . . . . . . . Machines Sabotaged . | . . . . . . . . . . Overloaded Fab Kills . | . . . . . . . . . . Hacking | -11 -10 -10 -10 -9 -8 -7 -7 -6 -5 --------- Run | Yrd Mat Min Exi Min Mat Fac Sto Fac Fac Machines Accessed 34 | . 1 . 3 . 6 10 5 3 6 Terminals 23 | . 1 . . . 6 5 5 2 4 Fabricators 4 | . . . . . . 2 . 1 1 Repair Stations . | . . . . . . . . . . Recycling Units 1 | . . . . . . . . . 1 Scanalyzers 3 | . . . . . . 3 . . . Garrison Access . | . . . . . . . . . . Total Hacks 68 | . 2 . 4 . 11 26 7 4 14 Successful 33 | . 2 . 4 . 2 14 4 1 6 Failed 35 | . . . . . 9 12 3 3 8 Catastrophic 10 | . . . . . 5 1 . 1 3 Database Lockouts . | . . . . . . . . . . Manual 28 | . . . 1 . 10 6 1 1 9 Terminals 46 | . 2 . . . 11 14 7 2 10 Fabricators 9 | . . . . . . 5 . 2 2 Repair Stations . | . . . . . . . . . . Recycling Units 2 | . . . . . . . . . 2 Scanalyzers 7 | . . . . . . 7 . . . Garrison Access . | . . . . . . . . . . Terminal Hacks 20 | . 2 . 4 . 2 3 4 1 4 Record 4 | . 1 . 3 . . . . . . Part Schematic 2 | . . . . . 1 . 1 . . Robot Analysis 1 | . . . . . . . . . 1 Open Door 2 | . . . . . . . 2 . . Open DSF 1 | . . . . . . . . 1 . Level Access Points 1 | . . . . . . . 1 . . Emergency Access Points 1 | . . . . . . 1 . . . Alert Level 3 | . 1 . . . . 1 . . 1 Unreport Threat 1 | . . . . . . . . . 1 Recall Investigation 1 | . . . . . . . . . 1 Hauler Manifests 2 | . . . . . 1 1 . . . Proto ID Catalog 1 | . . . 1 . . . . . . Fabricator Hacks 7 | . . . . . . 5 . . 2 Network Status 1 | . . . . . . 1 . . . Load Schematic 3 | . . . . . . 2 . . 1 Build 3 | . . . . . . 2 . . 1 Repair Station Hacks . | . . . . . . . . . . Recycling Unit Hacks . | . . . . . . . . . . Scanalyzer 6 | . . . . . . 6 . . . Insert Component 2 | . . . . . . 2 . . . Analyze 2 | . . . . . . 2 . . . Retrieve Study 2 | . . . . . . 2 . . . Garrison Access Hacks . | . . . . . . . . . . Unauthorized Hacks . | . . . . . . . . . . Terminals . | . . . . . . . . . . Fabricators . | . . . . . . . . . . Repair Stations . | . . . . . . . . . . Recycling Units . | . . . . . . . . . . Scanalyzers . | . . . . . . . . . . Garrison Access . | . . . . . . . . . . Data Cores Recovered . | . . . . . . . . . . Used . | . . . . . . . . . . Hacking Detections 26 | . . . . . 5 9 4 2 6 Full Trace Events 8 | . . . . . 3 3 . 1 1 Feedback Events . | . . . . . . . . . . Feedback Blocked . | . . . . . . . . . . Robot Schematics Acquired . | . . . . . . . . . . Robots Built . | . . . . . . . . . . Authchips . | . . . . . . . . . . Time . | . . . . . . . . . . Total Robot Build Rating . | . . . . . . . . . . Part Schematics Acquired 4 | . . . . . 1 2 1 . . Parts Built 5 | . . . . . . 3 . . 2 Authchips . | . . . . . . . . . . Time 217 | . . . . . . 133 . . 84 Total Part Build Rating 18 | . . . . . . 10 . . 8 Part Studies Acquired 2 | . . . . . . 2 . . . Parts Repaired . | . . . . . . . . . . Time . | . . . . . . . . . . Parts Recycled . | . . . . . . . . . . Recycled Matter . | . . . . . . . . . . Retrieved Matter . | . . . . . . . . . . Retrieved Components . | . . . . . . . . . . Parts Scanalyzed 2 | . . . . . . 2 . . . Part Schematics Acquired 2 | . . . . . . 2 . . . Parts Damaged . | . . . . . . . . . . Bothacking | -11 -10 -10 -10 -9 -8 -7 -7 -6 -5 ------------ Run | Yrd Mat Min Exi Min Mat Fac Sto Fac Fac Used RIF Installer . | . . . . . . . . . . Robots Hacked . | . . . . . . . . . . Non-combat . | . . . . . . . . . . Combat . | . . . . . . . . . . Robot Hacks Applied . | . . . . . . . . . . Relay Couplers Released 7 | . . . . . . 4 . 3 . Programmers 7 | . . . . . . 4 . 3 . Fabnet Peak Effective % . | . . . . . . . . . . Robots Rewired . | . . . . . . . . . . Allies Hacked . | . . . . . . . . . . Hacks Repelled . | . . . . . . . . . . Allies | -11 -10 -10 -10 -9 -8 -7 -7 -6 -5 -------- Run | Yrd Mat Min Exi Min Mat Fac Sto Fac Fac Total Allies 6 | . . . . 4 . . 2 . . Largest Group 3 | . . . . 3 2 . 2 . . Highest-Rated Group 62 | . . . . 55 24 . 62 . . Highest-Rated Ally 31 | . . . . 31 16 . 31 . . Total Orders . | . . . . . . . . . . Ally Attacks 49 | . . . . 38 3 . 8 . . Total Damage 459 | . . . . 291 44 . 124 . . Kills 8 | . . . . 7 1 . . . . Allies Corrupted . | . . . . . . . . . . Allies Melted . | . . . . . . . . . . Intel | -11 -10 -10 -10 -9 -8 -7 -7 -6 -5 ------- Run | Yrd Mat Min Exi Min Mat Fac Sto Fac Fac Active Infowar (turns) 1548 | 13 590 20 569 356 . . . . . Terrain 1548 | 13 590 20 569 356 . . . . . Robot Analysis Total 1 | . . . . . . . . . 1 Derelict Logs Recovered 1 | . . . . 1 . . . . . Drone Launches . | . . . . . . . . . . Drone Recoveries . | . . . . . . . . . . Exploration | -11 -10 -10 -10 -9 -8 -7 -7 -6 -5 ------------- Run | Yrd Mat Min Exi Min Mat Fac Sto Fac Fac Turns Passed 5523 | 163 590 20 569 640 822 1211 480 638 390 Spaces Moved 6542 | 78 270 9 237 387 553 2127 639 1498 744 Core 20 | 15 . . . . . 5 . . . Treads 722 | 63 270 9 237 143 . . . . . Legs . | . . . . . . . . . . Wheels 1035 | . . . . 244 553 238 . . . Hover . | . . . . . . . . . . Flight 4765 | . . . . . . 1884 639 1498 744 Fastest Speed 25 | 50 160 240 240 105 98 27 26 26 25 Average Speed 62 | 142 192 240 240 154 105 39 31 30 27 Slowest Speed 240 | 160 240 240 240 240 115 122 112 112 32 Overloaded Moves . | . . . . . . . . . . Propulsion Burnouts . | . . . . . . . . . . Robots Hopped 30 | . . . . . . 13 2 9 6 Potential Cave-ins 16 | . . . . . . 9 . 4 3 Cave-ins Triggered . | . . . . . . . . . . Exploration Rate (%) 41 | 5 55 6 62 77 40 46 67 35 22 Regions Visited 9 Branch Regions 4 Pre-discovered Areas 1 | . . . 1 . . . . . . Known Exits Taken 1 | . . . . . . . 1 . . Unknown Exits Taken 8 | 1 1 1 1 1 1 1 . 1 . Scrap Searched 3 | . . . . 3 . . . . . Spaces Dug 58 | . . . . . . 23 13 12 10 Terrain Destroyed 81 | . 1 . . . 22 23 13 12 10 Melee 58 | . . . . . . 23 13 12 10 Projectile . | . . . . . . . . . . AOE 23 | . 1 . . . 22 . . . . Terrain Rammed . | . . . . . . . . . . Walls Destroyed . | . . . . . . . . . . Machines Disabled . | . . . . . . . . . . Actions | -11 -10 -10 -10 -9 -8 -7 -7 -6 -5 --------- Run | Yrd Mat Min Exi Min Mat Fac Sto Fac Fac Total 7604 | 104 301 8 239 414 716 2425 880 1638 879 Wait 560 | . . . . 10 86 161 148 70 85 Move 6476 | 77 269 8 236 386 552 2103 634 1479 732 Hop 27 | . . . . . . 10 2 9 6 Pick Up 50 | 4 4 . 2 4 16 12 1 4 3 Fast Attach 55 | 8 . . . 1 7 12 6 11 10 Attach 19 | . . . . 2 4 8 . 2 3 Detach 11 | 1 . . . 1 2 5 . . 2 Swap 13 | . 4 . . . 2 1 5 1 . Drop 43 | 1 2 . 1 2 6 18 6 4 3 Fire 83 | 13 21 . . 8 41 . . . . Melee 185 | . . . . . . 60 54 36 35 Ram . | . . . . . . . . . . Kick . | . . . . . . . . . . Crush 1 | . 1 . . . . . . . . Escape Stasis 81 | . . . . . . 35 24 22 . Rewire . | . . . . . . . . . . Trap . | . . . . . . . . . . Miscellaneous . | . . . . . . . . . . Route ------- -11/Scrapyard -10/Materials (discovered 2 exits: [*Mat] / [*Min]) -10/Mines -10/Exiles -9/Mines -8/Materials -7/Factory (discovered 3 exits: *Fac x2 / *Sto) -7/Storage -6/Factory (discovered 2 exits: *Fac x2) -5/Factory History --------- Turn | Location | Event 2 | -11/Scrapyard | Met Revision 17 29 | -11/Scrapyard | Discovered new exit (range 16) 164 | -11/Scrapyard | Entered Materials 315 | -10/Materials | Build established: Mutant 524 | -10/Materials | Discovered new exit (range 16) 691 | -10/Materials | Discovered new exit (range 13) 754 | -10/Materials | Entered Mines 764 | -10/Mines | Deemed a non-threat by the Exiles lab entrance 764 | -10/Mines | Discovered new exit (range 5) 774 | -10/Mines | Entered Exiles 832 | -10/Exiles | Met 8R-AWN 873 | -10/Exiles | Met EX-HEX 945 | -10/Exiles | Met EX-BIN 978 | -10/Exiles | Aligned with FarCom system 981 | -10/Exiles | Given EX-Vault access code 1060 | -10/Exiles | Opened EX-Vault 1101 | -10/Exiles | Found Longsword +1 1154 | -10/Exiles | Warned to stay clear of 0b10 Research branches 1226 | -10/Exiles | Met EX-DEC 1250 | -10/Exiles | Learned location of Zion (-6) 1315 | -10/Exiles | Discovered new exit (range 14) 1343 | -10/Exiles | Left Exiles lab with Longsword +1 1343 | -10/Exiles | Entered Mines 1364 | -9/Mines | Assembled infested the area 1365 | -9/Mines | Met a Derelict bent on vengeance 1584 | -9/Mines | Learned Materials stockpile data 1601 | -9/Mines | Assisted by bots powering up and referring to "LRC-V3" 1638 | -9/Mines | Build established: Skirmisher 1914 | -9/Mines | Met a Derelict testing a Signal Generator 1962 | -9/Mines | Discovered new exit (range 13) 1983 | -9/Mines | Entered Materials 1983 | -8/Materials | Accompanied by 2 allies 1983 | -8/Materials | Evolved 4 slots: Power x1, Propulsion x2, Utility x1 2011 | -8/Materials | Build established: Mutant 2791 | -8/Materials | Discovered new exit (range 14) 2805 | -8/Materials | Entered Factory 2805 | -7/Factory | Evolved 2 slots: Propulsion x1, Utility x1 2891 | -7/Factory | Fabricated Imp. Flight Unit (x1) 3672 | -7/Factory | Fabricated Xenon Bombardment Thruster (x2) 3772 | -7/Factory | Discovered new exit (range 12) 3783 | -7/Factory | Discovered new exit (range 12) 3950 | -7/Factory | Discovered new exit (range 8) 4016 | -7/Factory | Entered Storage 4018 | -7/Storage | Build established: Sprinter 4019 | -7/Storage | Identified exit to Factory 4112 | -7/Storage | Met a pair of Derelict thieves 4496 | -7/Storage | Entered Factory 4496 | -6/Factory | Evolved 2 slots: Utility x2 4502 | -6/Factory | Lost 3 parts (1p2n) 4761 | -6/Factory | Discovered new exit (range 10) 5003 | -6/Factory | Lost 3 parts (1p2n) 5012 | -6/Factory | Destroyed 7 combat bots 5018 | -6/Factory | Discovered new exit (range 16) 5134 | -6/Factory | Entered another Factory area 5134 | -5/Factory | Evolved 2 slots: Utility x2 5162 | -5/Factory | Lost 3 parts (2n1w) 5237 | -5/Factory | Fabricated Xenon Bombardment Thruster (x2) 5524 | -5/Factory | Self-destructed Last Messages --------------- corruption cleaned. 05466_ Destroyed Mic. Fission Core. 05466_ Destroyed Tesla Rifle. 05469_ System corrupted: Heat flow error (+264). 05471_ Acquired Prototype Flight Unit. 05471_ Identified Biomechanical Wings. 05471_ Faulty integration damages Cld. Cesium-ion Thruster (-10). 05473_ Dropped Faulty Biomechanical Wings. 05477_ VTOL Module destroyed. 05477_ Microactuators destroyed. 05478_ Acquired 20 matter. 05483_ Penetrated by Slug. 05503_ Imp. Cooling System destroyed. 05507_ 5%WV=VYVNMF8Q/ 6WSVUPNQFTSGZ1PD0C|> 05513_ Hacking Suite destroyed. 05513_ Katana+ destroyed. 05516_ Cld. Cesium-ion Thruster destroyed. 05522_ System corrupted: Component data lost. 05522_ VTOL Module destroyed. Map ----- +----------------------------------------------------+ | #???????????????????????????????????????????????? | | #???????????????????????????????????????????????? | | #???????????????????????????????????????????????? | | #???????????????????????????????????????????????? | | #???????????????????????????????????????????????? | | ?????????????????????????????????????????????????? | | ##???????????????????????????????????????????????? | | #???????????????????????????????????????????????? | | #???????????????????????????????????????????????? | | #???????????????????????????????????????????????? | | #???????????????????????????????????????????????? | | #???????????????????????????????????????????????? | | #??????????????????#????????????????????????????? | | #????????????????# ##???????????????????????????? | | ########+####### ????????????????????????????? | | ???????????????????????????? | | ^ Y ???????????????????????????? | | """ *!** ????????????????????????????? | | """ !*! ####????????????????????????????????? | | """ ! ! #???????????????????????????????????? | | """ ! #???????????????##############??????? | | ! #???????????????# #??????? | | !! #???????????????# ! #??????? | | !! #???????????????# #??????? | | #??????????###### """ """ ######## | | ########???#@#p#" """ """ ## """ " | | #???##p# #p """ """ ## """ " | | ######## #????##### ## """ " | | ######??????# ####?????# """ """ ## | | ????????????# #?????# """ """ ## | | ????????????# ######## #?????# """ """ ## | | ????????????# #??????# ####??# "" | | ????????????# #??????# gg #??# ## | | ????????????#+#??????####g#######/##############/# | | ????????????????????????# g | | ????????????????????????# | | ????????????????????????####!! ^ | | ???????????????????????????#!! ###+########### | | ???????????????????????????# # ## | | ???????????????????????????# # ## | | ???????????????????????????# """ # ##! | | ???????????????????????????+ """ # [[! ## ! | | ???????????????????????????# """ # [! ## ! | | ??????????????????????????## # [! ## ! | | ???????????????? ########## # "" | | ???????????????? !! # ## | | ??????????????? ! ############### | | ???????????????? #????????????# | | ????????????????????####### #????????????# | | ??????????????????????????###+#### #?#######????# | +----------------------------------------------------+ Best States ------------- Heat Dissipation 81 Coolant Potential 65 Energy Generation 29 Energy Capacity 480 Matter Stores 300 Matter Capacity 300 Sight Range 16 Terrain Scan Range 16 Terrain Scan Density 10 Additional Mass Support 12 Armor Coverage 150 Propulsion Shielding 66 Melee Speed Boost 20 Evasion (%) 65 Melee Accuracy 8 Target Analysis 5 Recoil Reduction 4 Offensive Hacking 20 Defensive Hacking 12 Item Schematics ----------------- Imp. Flight Unit | -8/Materials | Hacked Xenon Bombardment Thruster | -7/Factory | Scanalyzed Cesium-ion Thruster | -7/Factory | Scanalyzed Flak Gun | -7/Storage | Hacked Robot Schematics ------------------ None Fabricated ------------ Imp. Flight Unit | x1 | -7/Factory Xenon Bombardment Thruster | x2 | -7/Factory Xenon Bombardment Thruster | x2 | -5/Factory Repaired ---------- Nothing Studied --------- Xenon Bombardment Thruster | -7/Factory | Hacked Katana | -7/Factory | Hacked Alien Tech Used ----------------- None Achievements -------------- Botjacking Cya! I Have A Map? Item+ Sixth Sense Challenges ------------ None Game ------ Seed OmegaReflectiveSlamshotty Manual? 0 Play Time 01:13:54 Cumulative 127.1 hours Start 2025.12.30 @ 23:40:14 End 2025.12.31 @ 23:57:14 Sessions 5 Manual Loads 0 Difficulty Rogue Special Mode None Game No. 243 Rogue 243 Adventurer 0 Explorer 0 Win Type - Total 0 Types 0/0/0/0/0/0/0/0/0/0 Lore% 31 Gallery% 48 Achievement% 26 Wizard Run 0 Options --------- Layout 1 ASCII 0 Keyboard 1 Movement Arrows Keybinds 0 Fullscreen 2 Font 24/Smallcaps Map View 50x35 Zoom Use 0% Tactical HUD 1 Map Filters NONE Filters NONE Steam 1 RUN: 507a0503-b430-44b0-b9ec-cbec9783c542